bitfinex/quotes_BTCUSD_20240821
["timestamp","ask_amount","ask_price","bid_price","bid_amount"]
[1724204574298,0.001021,59179.0,59178.0,0.26479545]
[1724204574505,0.001021,59179.0,59178.0,0.33428587]
[1724204575525,0.001021,59179.0,59178.0,0.33728587]
[1724204575936,0.001021,59179.0,59178.0,0.39968587]
[1724204576552,0.001021,59179.0,59178.0,0.32919545]
[1724204576760,0.001021,59179.0,59178.0,0.3251]
[1724204576973,0.001021,59179.0,59178.0,0.3261]
[1724204577176,0.001021,59179.0,59178.0,0.3251]
[1724204577714,0.001021,59179.0,59178.0,0.1849]
[1724204577889,0.001021,59179.0,59178.0,0.0849]
[1724204580387,0.001021,59179.0,59178.0,0.08899519]
[1724204580586,0.001021,59179.0,59178.0,0.08799519]
[1724204580809,0.001021,59179.0,59178.0,0.23159519]
[1724204581034,0.001021,59179.0,59178.0,0.33159519]
[1724204581205,0.001021,59179.0,59178.0,0.3275]
[1724204582056,0.001021,59179.0,59178.0,0.2623]
[1724204582636,0.001021,59179.0,59178.0,0.1849]
[1724204583037,0.001021,59179.0,59178.0,0.0849]
[1724204586342,0.001021,59179.0,59178.0,0.14798118]
[1724204586544,0.001021,59179.0,59178.0,0.24798118]
[1724204586759,0.001021,59179.0,59178.0,0.1849]
[1724204588186,0.001021,59179.0,59178.0,0.128]
[1724204588814,0.001021,59179.0,59178.0,0.1899]
[1724204589016,0.001021,59179.0,59178.0,0.1883]
[1724204589216,0.001021,59179.0,59178.0,0.3222]
[1724204589420,0.00011,59184.0,59180.0,0.003]
[1724204589597,0.00011,59184.0,59183.0,0.408]
[1724204589991,0.00011,59184.0,59183.0,0.531]
[1724204590480,0.00011,59184.0,59183.0,0.53]
[1724204590690,0.00011,59184.0,59183.0,0.5864]
[1724204590900,0.00011,59184.0,59183.0,0.6525]
[1724204591105,0.00011,59184.0,59183.0,0.6665]
[1724204591514,0.00011,59184.0,59183.0,0.6805]
[1724204591725,0.00011,59184.0,59183.0,0.6815]
[1724204591931,0.00011,59184.0,59183.0,0.6785]
[1724204593176,0.00011,59184.0,59183.0,0.6645]
[1724204593382,0.00011,59184.0,59183.0,0.66122739]
[1724204593586,0.00011,59184.0,59183.0,0.68922739]
[1724204593789,0.00011,59184.0,59183.0,0.69122739]
[1724204593993,0.00011,59184.0,59183.0,0.67522739]
[1724204594193,0.00011,59184.0,59183.0,0.66122739]
[1724204594396,0.00011,59184.0,59183.0,0.67622739]
[1724204594811,0.00011,59184.0,59183.0,0.69022739]
[1724204595725,0.00011,59184.0,59183.0,0.69222739]
[1724204595955,0.00011,59184.0,59183.0,0.68822739]
[1724204596218,0.00011,59184.0,59183.0,0.67522739]
[1724204596452,0.00011,59184.0,59183.0,0.68922739]
[1724204596943,0.00011,59184.0,59183.0,0.54772739]
[1724204597174,0.00011,59184.0,59183.0,0.55072739]
[1724204597894,0.00011,59184.0,59183.0,0.54272083]
[1724204598380,0.00011,59184.0,59183.0,0.68302083]
[1724204600078,0.00011,59184.0,59183.0,0.66902083]
[1724204600749,0.00821,59188.0,59187.0,0.1815]
[1724204601005,0.00437675,59191.0,59190.0,0.002]
[1724204601229,0.00437675,59191.0,59190.0,0.35969233]
[1724204601443,0.00437675,59191.0,59190.0,0.52526312]
[1724204601654,0.00437675,59191.0,59190.0,0.52217079]
[1724204603178,0.00437675,59191.0,59190.0,0.53617079]
[1724204603431,0.00437675,59191.0,59190.0,0.68397079]
[1724204603670,0.00437675,59191.0,59190.0,0.69493863]
[1724204604406,0.00437675,59191.0,59190.0,0.70893863]
[1724204605712,0.00437675,59191.0,59190.0,1.15964362]
[1724204605919,0.00437675,59191.0,59190.0,0.70893863]
[1724204606126,0.063006,59204.0,59194.0,0.002]
[1724204606346,0.063006,59204.0,59200.0,0.3316]
[1724204606554,0.063006,59204.0,59201.0,0.023]
[1724204606555,0.0779,59203.0,59201.0,0.023]
[1724204606978,0.07200187,59203.0,59201.0,0.023]
[1724204607787,0.07200187,59203.0,59201.0,0.05197448]
[1724204607990,0.07200187,59203.0,59201.0,0.09987448]
[1724204607991,0.06902799,59203.0,59201.0,0.09987448]
[1724204608121,0.06605889,59203.0,59201.0,0.09987448]
[1724204608357,0.0601546,59203.0,59201.0,0.09987448]
[1724204608565,0.0601546,59203.0,59202.0,0.07365745]
[1724204610252,0.063006,59204.0,59202.0,0.08765745]
[1724204610928,0.063006,59204.0,59202.0,0.10165745]
[1724204611134,0.00821,59206.0,59202.0,0.08765745]
[1724204611340,0.00821,59206.0,59204.0,0.0339]
[1724204613709,0.00821,59206.0,59204.0,0.0479]
[1724204613910,0.00821,59206.0,59204.0,0.0619]
[1724204614097,0.00821,59206.0,59204.0,0.1479]
[1724204614401,0.00821,59206.0,59204.0,0.1619]
[1724204614561,0.00821,59206.0,59205.0,0.05830119]
[1724204614892,0.00821,59206.0,59205.0,0.1339]
[1724204615843,0.00821,59206.0,59205.0,0.0339]
[1724204616096,0.00821,59206.0,59205.0,0.3316]
[1724204616317,0.00821,59206.0,59205.0,0.4316]
[1724204616689,0.00821,59206.0,59205.0,0.4596]
[1724204616894,0.14991,59206.0,59205.0,0.4596]
[1724204617090,0.15777691,59206.0,59205.0,0.4596]
[1724204619460,0.15777691,59206.0,59205.0,0.4316]
[1724204619860,0.15777691,59206.0,59205.0,0.4596]
[1724204620509,0.15777691,59206.0,59205.0,0.50892329]
[1724204622746,0.15777691,59206.0,59205.0,0.4596]
[1724204624479,0.15777691,59206.0,59205.0,0.2805]
[1724204627522,0.01607691,59206.0,59205.0,0.2805]
[1724204628552,0.01607691,59206.0,59205.0,0.2815]
[1724204628760,0.01607691,59206.0,59205.0,0.2675]
[1724204629738,0.01607691,59206.0,59205.0,0.31181274]
[1724204629941,0.01607691,59206.0,59205.0,0.31281274]
[1724204630351,0.01607691,59206.0,59205.0,0.32681274]
[1724204630553,0.01607691,59206.0,59205.0,0.32990383]
[1724204630763,0.01607691,59206.0,59205.0,0.35290383]
[1724204631020,0.01607691,59206.0,59205.0,0.34781274]
[1724204631265,0.08381,59206.0,59205.0,0.3035]
[1724204631675,0.09171932,59206.0,59205.0,0.3035]
[1724204632090,0.01611932,59206.0,59205.0,0.3035]
[1724204632293,0.01611932,59206.0,59205.0,0.3352036]
[1724204636498,0.01611932,59206.0,59205.0,0.3362036]
[1724204636701,0.01611932,59206.0,59205.0,0.47109969]
[1724204636857,0.01611932,59206.0,59205.0,0.52253141]
[1724204637052,0.00821,59206.0,59205.0,0.54774727]
[1724204637279,0.0080067,59206.0,59205.0,0.92266238]
[1724204637483,0.00821,59209.0,59208.0,0.09899218]
[1724204637484,0.00731625,59209.0,59208.0,0.09899218]
[1724204637688,0.00731625,59209.0,59208.0,0.24059218]
[1724204637883,0.00731625,59209.0,59208.0,0.34159218]
[1724204638685,0.00731625,59209.0,59208.0,0.45820417]
[1724204638936,0.00731625,59209.0,59208.0,0.51481521]
[1724204639320,0.00731625,59209.0,59208.0,0.45040322]
[1724204639524,0.00731625,59209.0,59208.0,0.51481521]
[1724204640342,0.00731625,59209.0,59208.0,0.52881521]
[1724204640756,0.00731625,59209.0,59208.0,0.35980322]
[1724204640959,0.00731625,59209.0,59208.0,0.47840322]
[1724204641381,0.00731625,59209.0,59208.0,0.52882325]
[1724204642703,0.00731625,59209.0,59208.0,0.70652325]
[1724204643310,0.00731625,59209.0,59208.0,0.65610322]
[1724204643719,0.00731625,59209.0,59208.0,0.70653522]
[1724204644129,0.00731625,59209.0,59208.0,0.65610322]
[1724204645283,0.00731625,59209.0,59208.0,0.73175559]
[1724204645706,0.00731625,59209.0,59208.0,0.18079962]
[1724204645910,0.01525747,59209.0,59208.0,0.23023913]
[1724204646087,0.01525747,59209.0,59208.0,0.52653913]
[1724204646311,0.00731625,59209.0,59208.0,0.52653913]
[1724204646537,0.00731625,59209.0,59208.0,0.52753913]
[1724204646948,0.00731625,59209.0,59208.0,0.47609962]
[1724204647195,0.08421625,59209.0,59208.0,0.47609962]
[1724204647569,0.0922382,59209.0,59208.0,0.47609962]
[1724204648448,0.0153382,59209.0,59208.0,0.52370958]
[1724204648656,0.0153382,59209.0,59208.0,0.47609962]
[1724204648874,0.0153382,59209.0,59208.0,0.47557762]
[1724204649501,0.0153382,59209.0,59208.0,0.47657762]
[1724204649702,0.00731625,59209.0,59208.0,0.47657762]
[1724204650288,0.00731625,59209.0,59208.0,0.47748072]
[1724204650515,0.00731625,59209.0,59208.0,0.5542034]
[1724204650721,0.00731625,59209.0,59208.0,0.5552034]
[1724204650916,0.00731625,59209.0,59208.0,1.10787798]
[1724204651090,0.00731625,59209.0,59208.0,1.00698366]
[1724204651308,0.00731625,59209.0,59208.0,1.19362975]
[1724204651506,0.00731625,59209.0,59208.0,1.06748366]
[1724204651507,1e-08,59209.0,59208.0,1.06748366]
[1724204652517,1e-08,59209.0,59208.0,1.05348366]
[1724204652903,1e-08,59209.0,59208.0,1.06748366]
[1724204653109,0.00821,59216.0,59215.0,0.15754818]
[1724204653313,0.08801,59230.0,59221.0,0.15894818]
[1724204653314,0.00821,59230.0,59221.0,0.15894818]
[1724204653516,0.00821,59230.0,59221.0,0.95621575]
[1724204653812,0.00821,59230.0,59221.0,1.05698282]
[1724204653995,0.00821,59230.0,59221.0,1.03093843]
[1724204654238,0.00821,59230.0,59221.0,1.15690708]
[1724204654421,1e-06,59222.0,59221.0,1.12856883]
[1724204654589,1e-06,59222.0,59221.0,1.15381977]
[1724204654807,1e-06,59222.0,59221.0,1.02785112]
[1724204655231,1e-06,59222.0,59221.0,1.04185112]
[1724204655637,0.00821,59230.0,59229.0,0.09844818]
[1724204655808,0.00821,59230.0,59229.0,0.47984818]
[1724204656008,0.00821,59230.0,59229.0,0.63020691]
[1724204656453,0.00821,59230.0,59229.0,0.57984818]
[1724204657426,0.00821,59230.0,59229.0,0.59384818]
[1724204657633,0.00821,59230.0,59229.0,0.68257086]
[1724204657847,0.00821,59230.0,59229.0,0.67933654]
[1724204658275,0.0117336,59250.0,59236.0,0.003]
[1724204658276,0.0666,59247.0,59236.0,0.003]
[1724204658486,0.0666,59247.0,59238.0,0.01684818]
[1724204658698,0.0666,59247.0,59238.0,0.05207145]
[1724204658916,0.0666,59247.0,59238.0,0.07507145]
[1724204659118,0.0666,59247.0,59238.0,0.17507145]
[1724204659803,0.0666,59247.0,59238.0,0.1999387]
[1724204660215,0.0666,59247.0,59238.0,0.1859387]
[1724204660423,0.0666,59247.0,59238.0,0.0999387]
[1724204660629,0.0666,59247.0,59238.0,0.2009387]
[1724204661056,0.0666,59247.0,59238.0,0.2149387]
[1724204661252,0.0666,59247.0,59238.0,0.2009387]
[1724204661677,0.0666,59247.0,59238.0,0.2149387]
[1724204662350,0.0666,59247.0,59238.0,0.2009387]
[1724204662559,0.0666,59247.0,59238.0,0.2149387]
[1724204662765,0.0117336,59250.0,59238.0,0.7630387]
[1724204662996,0.0117336,59250.0,59238.0,0.7490387]
[1724204663207,0.0117336,59250.0,59238.0,0.7500387]
[1724204663417,0.0117336,59250.0,59249.0,0.61244818]
[1724204663623,0.0117336,59250.0,59249.0,0.44014818]
[1724204663832,0.0117336,59250.0,59249.0,0.43914818]
[1724204664050,0.0117336,59250.0,59249.0,0.44014818]
[1724204664278,0.0117336,59250.0,59249.0,0.43814818]
[1724204664485,0.0117336,59250.0,59249.0,0.41314818]
[1724204664486,0.1515336,59250.0,59249.0,0.41314818]
[1724204664710,0.1515336,59250.0,59249.0,0.11684818]
[1724204664931,0.16017113,59250.0,59249.0,0.11684818]
[1724204665157,0.16017113,59250.0,59249.0,0.03084818]
[1724204666032,0.16017113,59250.0,59249.0,0.04484818]
[1724204666466,0.16017113,59250.0,59249.0,0.03084818]
[1724204666678,0.16017113,59250.0,59249.0,0.04484818]
[1724204667812,0.16017113,59250.0,59249.0,0.028]
[1724204668015,0.16017113,59250.0,59249.0,0.0619]
[1724204671864,0.16017113,59250.0,59249.0,0.10772]
[1724204672053,0.16017113,59250.0,59249.0,0.20772]
[1724204672691,0.08377113,59250.0,59249.0,0.23072]
[1724204673342,0.08377113,59250.0,59249.0,0.1849]
[1724204673551,0.08377113,59250.0,59249.0,0.0849]
[1724204673758,0.08377113,59250.0,59249.0,0.1849]
[1724204674850,0.15997113,59250.0,59249.0,0.1619]
[1724204675058,0.15997113,59250.0,59249.0,0.0619]
[1724204675271,0.15997113,59250.0,59249.0,0.1619]
[1724204675478,0.16079113,59250.0,59249.0,0.1619]
[1724204676342,0.16079113,59250.0,59249.0,0.0619]
[1724204677242,0.02119113,59250.0,59249.0,0.1634]
[1724204677451,0.1,59255.0,59254.0,0.003]
[1724204677655,0.1,59255.0,59254.0,0.1782]
[1724204677860,0.1,59255.0,59254.0,0.2012]
[1724204678072,0.1,59255.0,59254.0,0.3216282]
[1724204678292,0.066248,59255.0,59254.0,0.32471001]
[1724204678699,0.066248,59255.0,59254.0,0.33871001]
[1724204678952,0.066248,59255.0,59254.0,0.3868838]
[1724204679376,0.066248,59255.0,59254.0,0.33871001]
[1724204679591,0.066248,59255.0,59254.0,0.32471001]
[1724204679804,0.1489,59273.0,59258.0,0.0379]
[1724204680015,0.1489,59273.0,59258.0,0.39316775]
[1724204680466,0.07561,59264.0,59258.0,0.48916775]
[1724204680918,0.07561,59264.0,59258.0,0.49016775]
[1724204681425,0.07561,59264.0,59258.0,0.50316775]
[1724204681666,0.07561,59264.0,59258.0,0.50416775]
[1724204681667,0.0657,59262.0,59258.0,0.50416775]
[1724204681898,0.0657,59262.0,59258.0,0.50316775]
[1724204682102,0.0657,59262.0,59258.0,0.50416775]
[1724204682316,0.0657,59262.0,59258.0,0.52798522]
[1724204682528,0.00766,59259.0,59258.0,0.52798522]
[1724204682734,0.00766,59259.0,59258.0,0.47801747]
[1724204682735,0.0002,59259.0,59258.0,0.47801747]
[1724204682973,0.0002,59259.0,59258.0,0.49201747]
[1724204683460,0.0002,59259.0,59258.0,0.47801747]
[1724204683869,0.0002,59259.0,59258.0,0.49201747]
[1724204684520,0.0002,59259.0,59258.0,0.17271747]
[1724204684733,0.0002,59259.0,59258.0,0.0619]
[1724204685829,0.0002,59259.0,59258.0,0.0479]
[1724204686038,0.0002,59259.0,59258.0,0.0619]
[1724204686515,0.0002,59259.0,59258.0,0.0479]
[1724204686654,0.0002,59259.0,59258.0,0.0619]
[1724204687335,0.00102,59259.0,59258.0,0.0619]
[1724204687776,0.00102,59259.0,59258.0,0.05530979]
[1724204688299,0.00102,59259.0,59258.0,0.05839214]
[1724204688505,0.00102,59259.0,59258.0,0.21792811]
[1724204688705,0.00102,59259.0,59258.0,0.16430979]
[1724204689128,0.00865225,59259.0,59258.0,0.17830979]
[1724204689529,0.00865225,59259.0,59258.0,0.16430979]
[1724204690081,0.00865225,59259.0,59258.0,0.17830979]
[1724204690280,0.00865225,59259.0,59258.0,0.2302199]
[1724204690489,0.00865225,59259.0,59258.0,0.2162199]
[1724204690707,0.00102,59259.0,59258.0,0.21313819]
[1724204691086,0.00102,59259.0,59258.0,0.22713819]
[1724204691292,0.00102,59259.0,59258.0,0.29901966]
[1724204691498,0.00102,59259.0,59258.0,0.34643819]
[1724204691698,0.00102,59259.0,59258.0,0.37643819]
[1724204692156,0.00102,59259.0,59258.0,0.36343819]
[1724204692331,0.00102,59259.0,59258.0,0.37743819]
[1724204692709,0.00011,59264.0,59263.0,0.31801958]
[1724204692911,0.00011,59264.0,59263.0,0.44409985]
[1724204693594,0.00011,59264.0,59263.0,0.44509985]
[1724204693797,0.00011,59264.0,59263.0,0.44309985]
[1724204694005,0.00011,59264.0,59263.0,0.44001958]
[1724204694189,0.00011,59264.0,59263.0,0.14371958]
[1724204694190,0.06381,59264.0,59263.0,0.14371958]
[1724204694500,0.07147749,59264.0,59263.0,0.03471958]
[1724204694716,0.07147749,59264.0,59263.0,0.13471958]
[1724204695085,0.07147749,59264.0,59263.0,0.14871958]
[1724204695287,0.07147749,59264.0,59263.0,0.12071958]
[1724204695645,0.15007749,59264.0,59263.0,0.13471958]
[1724204696022,0.15007749,59264.0,59263.0,0.12071958]
[1724204696650,0.15007749,59264.0,59263.0,0.13471958]
[1724204697007,0.15007749,59264.0,59263.0,0.12071958]
[1724204697424,0.15007749,59264.0,59263.0,0.13471958]
[1724204697822,0.15007749,59264.0,59263.0,0.14871958]
[1724204697994,0.15007749,59264.0,59263.0,0.13471958]
[1724204698494,0.15007749,59264.0,59263.0,0.14871958]
[1724204698746,0.15007749,59264.0,59263.0,0.04871958]
[1724204699045,0.15007749,59264.0,59263.0,0.03471958]
[1724204699253,0.15007749,59264.0,59263.0,0.04871958]
[1724204699900,0.15089749,59264.0,59263.0,0.04871958]
[1724204700117,0.15089749,59264.0,59263.0,0.03471958]
[1724204700521,0.15089749,59264.0,59263.0,0.04871958]
[1724204700726,0.00859749,59264.0,59263.0,0.04871958]
[1724204701084,0.00859749,59264.0,59263.0,0.34501958]
[1724204701288,0.00859749,59264.0,59263.0,0.48725154]
[1724204701523,0.00093,59264.0,59263.0,0.51125154]
[1724204702036,0.00093,59264.0,59263.0,0.5240584]
[1724204702249,1e-06,59266.0,59265.0,0.403]
[1724204702457,1e-06,59266.0,59265.0,0.62913289]
[1724204702682,1e-06,59266.0,59265.0,0.78241526]
[1724204702899,1e-06,59266.0,59265.0,0.73213289]
[1724204703095,0.1389374,59282.0,59277.0,0.001]
[1724204703312,0.00766579,59281.0,59278.0,0.02071958]
[1724204703512,0.00766579,59281.0,59279.0,0.07849982]
[1724204703724,0.0833,59288.0,59279.0,0.07542154]
[1724204704137,0.07594175,59288.0,59279.0,0.07542154]
[1724204704340,0.07594175,59288.0,59280.0,0.04717215]
[1724204704549,0.07594175,59288.0,59281.0,0.023]
[1724204705155,0.07594175,59288.0,59280.0,0.14717215]
[1724204705156,0.07594175,59288.0,59280.0,0.07017215]
[1724204705979,0.07594175,59288.0,59279.0,0.03131153]
[1724204706178,0.0631,59287.0,59280.0,0.0030779]
[1724204706384,0.0631,59287.0,59281.0,0.01]
[1724204706584,0.00785788,59286.0,59280.0,0.0030779]
[1724204706794,0.00785788,59286.0,59280.0,0.04761296]
[1724204706995,0.00785788,59286.0,59281.0,0.02071958]
[1724204707228,0.00785788,59286.0,59281.0,0.02671958]
[1724204707434,0.00785788,59286.0,59281.0,0.02979758]
[1724204707639,0.00785788,59286.0,59281.0,0.02379758]
[1724204707853,0.00785788,59286.0,59281.0,0.07803564]
[1724204708260,0.00785788,59286.0,59281.0,0.07903564]
[1724204708465,0.00785788,59286.0,59281.0,0.02479758]
[1724204708677,0.00785788,59286.0,59285.0,0.31701958]
[1724204708882,0.00785788,59286.0,59285.0,0.41801958]
[1724204709087,0.0656,59297.0,59285.0,0.41801958]
[1724204709293,0.0828,59288.0,59285.0,0.41701958]
[1724204709532,0.0828,59288.0,59287.0,0.02071958]
[1724204710003,0.15561323,59288.0,59287.0,0.02071958]
[1724204710712,0.15561323,59288.0,59279.0,0.30689195]
[1724204710713,0.15561323,59288.0,59280.0,0.12071958]
[1724204710938,0.15561323,59288.0,59282.0,0.02071958]
[1724204711665,0.15561323,59288.0,59287.0,0.03471958]
[1724204712311,0.15643323,59288.0,59287.0,0.03471958]
[1724204713077,0.15643323,59288.0,59287.0,0.04871958]
[1724204713318,0.15643323,59288.0,59287.0,0.03471958]
[1724204713565,0.07363323,59288.0,59287.0,0.03471958]
[1724204713822,0.00873323,59288.0,59286.0,0.001]
[1724204714062,0.00873323,59288.0,59282.0,0.01707784]
[1724204714063,0.00873323,59288.0,59285.0,0.02071958]
[1724204714564,0.00873323,59288.0,59287.0,0.03471958]
[1724204714857,0.00082,59288.0,59287.0,0.03471958]
[1724204715133,0.00874966,59288.0,59287.0,0.02071958]
[1724204715364,0.00082,59288.0,59287.0,0.03471958]
[1724204715626,0.00874966,59288.0,59287.0,0.02071958]
[1724204715881,0.00874966,59288.0,59287.0,0.03471958]
[1724204716127,0.00874966,59288.0,59287.0,0.02071958]
[1724204716413,0.00874966,59288.0,59287.0,0.03471958]
[1724204717218,0.08474966,59288.0,59287.0,0.03471958]
[1724204717975,0.08474966,59288.0,59287.0,0.04871958]
[1724204718525,0.08474966,59288.0,59287.0,0.03471958]
[1724204719068,0.16790011,59288.0,59287.0,0.028]
[1724204719821,0.16890011,59288.0,59287.0,0.028]
[1724204720324,0.16468341,59288.0,59287.0,0.014]
[1724204720582,0.14894966,59288.0,59287.0,0.014]
[1724204721088,0.14894966,59288.0,59287.0,0.028]
[1724204721089,0.14794966,59288.0,59287.0,0.028]
[1724204721328,0.14794966,59288.0,59287.0,0.06183]
[1724204721594,0.14794966,59288.0,59287.0,0.04783]
[1724204722429,0.07194966,59288.0,59287.0,0.06183]
[1724204723119,0.00874966,59288.0,59287.0,0.06183]
[1724204723355,0.00874966,59288.0,59287.0,0.14063]
[1724204723599,0.00874966,59288.0,59287.0,0.16183]
[1724204724948,0.00874966,59288.0,59287.0,0.06183]
[1724204725692,0.08964966,59288.0,59287.0,0.06183]
[1724204725949,0.08964966,59288.0,59287.0,0.028]
[1724204725950,0.15304966,59288.0,59287.0,0.028]
[1724204727713,0.17057341,59288.0,59287.0,0.028]
[1724204727956,0.15404966,59288.0,59287.0,0.028]
[1724204728491,0.15304966,59288.0,59287.0,0.028]
[1724204729289,0.15304966,59288.0,59287.0,0.06183]
[1724204730283,0.07214966,59288.0,59287.0,0.06183]
[1724204730525,0.00874966,59288.0,59287.0,0.06183]
[1724204732055,0.01680189,59288.0,59287.0,0.06183]
[1724204732315,0.15430189,59288.0,59287.0,0.06183]
[1724204733512,0.01680189,59288.0,59287.0,0.06183]
[1724204734226,0.00082,59288.0,59287.0,0.06183]
[1724204734963,0.01680718,59288.0,59287.0,0.06183]
[1724204738289,0.01680718,59288.0,59287.0,0.22204141]
[1724204738499,0.01680718,59288.0,59287.0,0.32304141]
[1724204738709,0.00082,59288.0,59287.0,0.32304141]
[1724204739197,0.00082,59288.0,59287.0,0.32204141]
[1724204739432,0.00082,59288.0,59287.0,0.34604141]
[1724204739638,0.00082,59288.0,59287.0,0.33204141]
[1724204739870,0.00082,59288.0,59287.0,0.31473]
[1724204740112,0.00082,59288.0,59287.0,0.31880668]
[1724204741510,0.00082,59288.0,59287.0,0.32080668]
[1724204741752,0.00082,59288.0,59287.0,0.33480668]
[1724204742002,0.00082,59288.0,59287.0,0.32773]
[1724204742220,0.00082,59288.0,59287.0,0.32873]
[1724204742463,0.00082,59288.0,59287.0,0.32973]
[1724204742906,0.00082,59288.0,59287.0,0.26593]
[1724204743135,0.00082,59288.0,59287.0,0.18483]
[1724204743373,0.00082,59288.0,59287.0,0.08483]
[1724204744375,0.06662,59288.0,59287.0,0.06183]
[1724204744825,0.08271676,59288.0,59287.0,0.06183]
[1724204746225,0.01691676,59288.0,59287.0,0.06183]
[1724204746449,0.01691676,59288.0,59287.0,0.14303]
[1724204746676,0.00082,59288.0,59287.0,0.24303]
[1724204747811,0.08122,59288.0,59287.0,0.16183]
[1724204748086,0.14202,59288.0,59287.0,0.16183]
[1724204748303,0.15808704,59288.0,59287.0,0.16183]
[1724204749456,0.15808704,59288.0,59287.0,0.06183]
[1724204752647,0.01688704,59288.0,59287.0,0.06183]
[1724204753642,0.09888704,59288.0,59287.0,0.06183]
[1724204754092,0.09888704,59288.0,59287.0,0.16183]
[1724204754232,0.09888704,59288.0,59287.0,0.06183]
[1724204755997,0.0029778,59289.0,59287.0,0.06183]
[1724204755998,0.0637,59293.0,59287.0,0.06183]
[1724204756196,0.2963,59304.0,59290.0,0.001]
[1724204756409,0.00282541,59298.0,59290.0,0.001]
[1724204756823,0.00282541,59298.0,59287.0,0.028]
[1724204756824,0.2,59308.0,59294.0,0.001]
[1724204757008,0.026418,59307.0,59295.0,0.001]
[1724204757240,0.026418,59309.0,59296.0,0.001]
[1724204757445,0.026418,59309.0,59287.0,0.028]
[1724204757446,0.00282541,59306.0,59298.0,0.001]
[1724204758057,0.12655447,59315.0,59299.0,0.001]
[1724204758256,0.02924149,59314.0,59303.0,0.001]
[1724204758463,0.02641608,59313.0,59303.0,0.001]
[1724204758668,0.00282541,59312.0,59303.0,0.001]
[1724204758875,0.02641608,59311.0,59303.0,0.001]
[1724204759079,0.0647,59308.0,59303.0,0.001]
[1724204759265,0.00282541,59307.0,59303.0,0.001]
[1724204759736,0.0647,59308.0,59304.0,0.001]
[1724204759946,0.0647,59308.0,59293.0,0.064]
[1724204759947,0.0647,59308.0,59307.0,0.001]
[1724204761790,0.0647,59308.0,59307.0,0.003]
[1724204761997,0.1428,59316.0,59307.0,0.003]
[1724204762200,0.1391,59314.0,59308.0,0.001]
[1724204762408,0.59404115,59325.0,59307.0,0.002]
[1724204762409,0.1391,59312.0,59307.0,0.002]
[1724204762612,0.1391,59310.0,59307.0,0.002]
[1724204762818,0.00282541,59309.0,59307.0,0.002]
[1724204763023,0.1476,59306.0,59297.0,0.1]
[1724204763282,0.0814,59304.0,59298.0,0.001]
[1724204763484,0.00282541,59303.0,59298.0,0.001]
[1724204763690,0.01343827,59303.0,59298.0,0.001]
[1724204764006,0.01626368,59303.0,59298.0,0.001]
[1724204764427,0.14382541,59302.0,59298.0,0.001]
[1724204764675,0.01343827,59301.0,59298.0,0.001]
[1724204764905,0.01343827,59301.0,59298.0,0.009]
[1724204765168,0.01343827,59301.0,59300.0,0.001]
[1724204766833,0.1417,59305.0,59300.0,0.001]
[1724204767203,0.1417,59305.0,59304.0,0.001]
[1724204767400,0.08841478,59305.0,59304.0,0.001]
[1724204768446,0.02641478,59305.0,59304.0,0.001]
[1724204768632,0.02641478,59308.0,59304.0,0.001]
[1724204768772,0.02641478,59307.0,59304.0,0.001]
[1724204769042,0.02641478,59306.0,59304.0,0.007]
[1724204769273,0.02641478,59305.0,59304.0,0.009]
[1724204769513,0.1423,59312.0,59304.0,0.009]
[1724204769514,0.02641478,59311.0,59304.0,0.009]
[1724204769753,0.02641478,59310.0,59304.0,0.009]
[1724204769994,0.02924019,59309.0,59307.0,0.001]
[1724204770246,0.00282541,59309.0,59307.0,0.001]
[1724204770472,0.0264137,59308.0,59307.0,0.001]
[1724204770711,0.0264137,59311.0,59307.0,0.001]
[1724204771231,0.0264137,59311.0,59310.0,0.001]
[1724204771469,0.02923911,59311.0,59309.0,0.001]
[1724204771683,0.0264137,59310.0,59305.0,0.001]
[1724204771920,0.1383,59308.0,59304.0,0.001]
[1724204772150,0.02923911,59307.0,59304.0,0.001]
[1724204772376,0.0264137,59306.0,59304.0,0.001]
[1724204772605,0.00282541,59305.0,59304.0,0.001]
[1724204772854,0.02923911,59305.0,59304.0,0.001]
[1724204773082,0.02923911,59305.0,59304.0,0.003]
[1724204773326,0.00282541,59305.0,59304.0,0.082]
[1724204773563,0.00364641,59310.0,59307.0,0.001]
[1724204773790,0.02641349,59309.0,59307.0,0.001]
[1724204774019,0.00282541,59308.0,59307.0,0.001]
[1724204774244,0.0292389,59308.0,59305.0,0.001]
[1724204774483,0.02641349,59307.0,59306.0,0.001]
[1724204774954,0.02641349,59307.0,59305.0,0.001]
[1724204775202,0.00282541,59306.0,59305.0,0.001]
[1724204775470,0.00282541,59306.0,59303.0,0.0019031]
[1724204775471,0.1717389,59306.0,59303.0,0.0019031]
[1724204775713,0.02641349,59305.0,59304.0,0.007]
[1724204776003,0.02641349,59305.0,59303.0,0.0009031]
[1724204776193,0.03994538,59305.0,59304.0,0.001]
[1724204777049,0.03994538,59305.0,59303.0,0.0049031]
[1724204777257,0.02641349,59304.0,59303.0,0.0009031]
[1724204777674,0.03994538,59304.0,59303.0,0.0009031]
[1724204778308,0.04277079,59304.0,59303.0,0.0009031]
[1724204779165,0.04256786,59304.0,59303.0,0.0009031]
[1724204779818,0.04256786,59304.0,59303.0,0.0039031]
[1724204780231,0.04256786,59304.0,59303.0,0.0109031]
[1724204780874,0.17936786,59304.0,59303.0,0.0109031]
[1724204782627,0.17936786,59304.0,59303.0,0.0039031]
[1724204782832,0.17936786,59304.0,59303.0,0.0019031]
[1724204788750,0.30583429,59304.0,59303.0,0.0019031]
[1724204788956,0.17936786,59304.0,59303.0,0.0019031]
[1724204789798,0.17654245,59304.0,59303.0,0.0019031]
[1724204790011,0.03974245,59304.0,59303.0,0.0029031]
[1724204790226,0.01332896,59304.0,59303.0,0.0029031]
[1724204790639,0.000821,59310.0,59303.0,0.0029031]
[1724204790858,0.02641386,59309.0,59303.0,0.0029031]
[1724204791068,0.03749091,59309.0,59305.0,0.001]
[1724204791259,0.02641386,59308.0,59305.0,0.001]
[1724204791508,0.02923927,59308.0,59305.0,0.001]
[1724204791718,0.02641386,59307.0,59303.0,0.0009031]
[1724204791945,0.00282541,59306.0,59303.0,0.0009031]
[1724204792162,0.01399049,59306.0,59303.0,0.0009031]
[1724204792375,0.0635,59305.0,59303.0,0.0039031]